bitfinex/quotes_ETHUSD_20240608
["timestamp","ask_amount","ask_price","bid_price","bid_amount"]
[1717872069982,0.58540389,3690.9,3690.7,0.49273011]
[1717872070287,1.62618196,3691.0,3690.7,0.49273011]
[1717872070484,0.58540182,3690.9,3690.7,0.49273011]
[1717872070785,0.58540182,3690.8,3690.7,0.49273011]
[1717872071139,1.62618196,3690.9,3690.7,0.49273011]
[1717872071636,2.3245,3691.5,3690.7,0.49273011]
[1717872071637,1.62618196,3691.0,3690.7,0.49273011]
[1717872071835,0.58539831,3690.9,3690.7,0.49273011]
[1717872072056,1.62618196,3690.9,3690.7,0.49273011]
[1717872072492,0.58541668,3690.8,3690.7,0.49273011]
[1717872075195,1.62618196,3690.9,3690.7,0.49273011]
[1717872075667,0.58541723,3690.8,3690.7,0.49273011]
[1717872076769,1.62618196,3690.9,3690.7,0.49273011]
[1717872077190,0.58542115,3690.8,3690.7,0.49273011]
[1717872079660,2.21160311,3690.8,3690.7,0.49273011]
[1717872082356,1.62618196,3691.1,3690.7,0.49273011]
[1717872082554,0.58543407,3691.0,3690.7,0.49273011]
[1717872083607,1.62618196,3691.0,3690.7,0.49273011]
[1717872084677,0.58543317,3690.9,3690.7,0.49273011]
[1717872084903,1.62618196,3691.0,3690.7,0.49273011]
[1717872085088,0.58543316,3690.9,3690.7,0.49273011]
[1717872085276,1.62618196,3691.0,3690.7,0.49273011]
[1717872085472,0.58543321,3690.9,3690.7,0.49273011]
[1717872085679,1.62618196,3691.0,3690.7,0.49273011]
[1717872086103,0.58543266,3690.9,3690.7,0.49273011]
[1717872086308,1.62618196,3691.0,3690.7,0.49273011]
[1717872086505,1.62619923,3691.0,3690.7,0.49273011]
[1717872086712,0.58543335,3690.9,3690.7,0.49273011]
[1717872086906,1.62619923,3691.0,3690.7,0.49273011]
[1717872087074,0.58543183,3690.9,3690.7,0.49273011]
[1717872087296,1.62619923,3691.0,3690.7,0.49273011]
[1717872087496,2.3245,3691.5,3690.7,0.49273011]
[1717872087666,1.62619718,3691.0,3690.7,0.49273011]
[1717872087868,0.58543098,3690.9,3690.7,0.49273011]
[1717872088067,1.62619718,3691.0,3690.7,0.49273011]
[1717872088401,0.58543173,3690.9,3690.7,0.49273011]
[1717872088594,1.62619718,3691.0,3690.7,0.49273011]
[1717872088784,0.58543359,3690.9,3690.7,0.49273011]
[1717872088970,1.62619718,3691.0,3690.7,0.49273011]
[1717872089175,0.58543355,3690.9,3690.7,0.49273011]
[1717872089382,1.62619718,3691.0,3690.7,0.49273011]
[1717872090089,0.58543152,3690.9,3690.7,0.49273011]
[1717872090471,1.62619718,3691.0,3690.7,0.49273011]
[1717872091123,0.58543189,3690.9,3690.7,0.49273011]
[1717872091324,1.62619718,3691.0,3690.7,0.49273011]
[1717872091532,0.58543367,3690.9,3690.7,0.49273011]
[1717872091731,1.62619718,3691.0,3690.7,0.49273011]
[1717872092033,0.58543206,3690.9,3690.7,0.49273011]
[1717872092237,1.62619718,3691.0,3690.7,0.49273011]
[1717872092421,0.58543207,3690.9,3690.7,0.49273011]
[1717872092627,1.62619718,3691.0,3690.7,0.49273011]
[1717872093134,0.58543336,3690.9,3690.7,0.49273011]
[1717872093427,1.62619718,3691.0,3690.7,0.49273011]
[1717872093628,0.58543339,3690.9,3690.7,0.49273011]
[1717872093797,1.62619718,3691.0,3690.7,0.49273011]
[1717872093992,0.58543224,3690.9,3690.7,0.49273011]
[1717872094193,1.62619718,3691.0,3690.7,0.49273011]
[1717872094596,0.58543272,3690.9,3690.7,0.49273011]
[1717872094839,1.62619718,3691.0,3690.7,0.49273011]
[1717872095134,0.58543271,3690.9,3690.7,0.49273011]
[1717872095298,1.62619718,3691.0,3690.7,0.49273011]
[1717872095497,0.585433,3690.9,3690.7,0.49273011]
[1717872095700,1.62619718,3691.0,3690.7,0.49273011]
[1717872095928,0.58543248,3690.9,3690.7,0.49273011]
[1717872096095,1.62619718,3691.0,3690.7,0.49273011]
[1717872096296,0.58543347,3690.9,3690.7,0.49273011]
[1717872096530,1.62619718,3691.0,3690.7,0.49273011]
[1717872096737,0.57564,3691.4,3690.7,0.49273011]
[1717872096738,2.21163487,3690.9,3690.7,0.49273011]
[1717872096939,1.62619718,3690.9,3690.7,0.49273011]
[1717872097439,0.58544043,3690.8,3690.3,5.4844]
[1717872097652,2.2901,3691.1,3690.3,6.87725466]
[1717872097653,2.21163761,3690.7,3690.3,6.87725466]
[1717872098003,0.58544043,3690.6,3690.3,6.87725466]
[1717872098204,1.62619718,3690.7,3690.3,6.87725466]
[1717872099328,1.62619718,3690.8,3690.3,6.87725466]
[1717872099510,0.58548533,3690.7,3690.3,6.87725466]
[1717872099718,1.62619718,3690.8,3690.3,6.87725466]
[1717872099950,0.5854864,3690.7,3690.3,6.87725466]
[1717872100155,1.62619718,3690.8,3690.3,5.4844]
[1717872100310,0.58548448,3690.7,3690.3,5.4844]
[1717872100652,1.62619718,3690.8,3690.3,5.4844]
[1717872100854,2.21168949,3690.7,3690.3,5.4844]
[1717872101009,1.62619718,3690.7,3690.3,5.4844]
[1717872102149,1.62619718,3690.8,3690.3,5.4844]
[1717872102358,0.6351995,3691.0,3690.3,5.4844]
[1717872102650,0.58548643,3690.7,3690.3,5.4844]
[1717872102861,1.62635121,3690.8,3690.3,5.4844]
[1717872103059,2.21184776,3690.7,3690.3,5.4844]
[1717872103355,1.62635121,3690.8,3690.3,5.4844]
[1717872103572,0.58549345,3690.7,3690.3,5.4844]
[1717872105728,1.62635121,3690.8,3690.3,5.4844]
[1717872105924,1.62635121,3690.8,3690.4,0.49301599]
[1717872106457,0.58549253,3690.7,3690.4,0.49301599]
[1717872107049,2.21184374,3690.7,3690.4,0.49301599]
[1717872107253,1.62635121,3690.7,3690.4,0.49301599]
[1717872107953,2.21184374,3690.7,3690.4,0.49301599]
[1717872108142,1.62635121,3690.7,3690.4,0.49301599]
[1717872108552,1.62635121,3690.8,3690.4,0.49301599]
[1717872108755,0.58551504,3690.7,3690.4,0.49301599]
[1717872109259,1.62635121,3690.8,3690.4,0.49301599]
[1717872109818,0.58551504,3690.7,3690.4,0.49301599]
[1717872110123,2.21186625,3690.7,3690.4,0.49301599]
[1717872110326,1.62635121,3690.7,3690.4,0.49301599]
[1717872110568,1.62635121,3690.8,3690.4,0.49301599]
[1717872110729,0.58551504,3690.7,3690.4,0.49301599]
[1717872111675,1.62635121,3690.8,3690.4,0.49301599]
[1717872112152,2.21186625,3690.8,3690.4,0.49301599]
[1717872112361,1.62635121,3690.8,3690.4,0.49301599]
[1717872112877,2.21186625,3690.8,3690.4,0.49301599]
[1717872113036,1.62635121,3690.8,3690.4,0.49301599]
[1717872113475,0.58551504,3690.8,3690.4,0.49301599]
[1717872113867,1.62635121,3690.9,3690.4,0.49301599]
[1717872114060,2.21186625,3690.9,3690.4,0.49301599]
[1717872114262,0.58551504,3690.8,3690.4,0.49301599]
[1717872114468,1.62635121,3690.9,3690.4,0.49301599]
[1717872114803,2.21186625,3690.9,3690.4,0.49301599]
[1717872115075,1.62635121,3690.9,3690.4,0.49301599]
[1717872115377,2.21186625,3690.9,3690.4,0.49301599]
[1717872115587,1.62635121,3690.9,3690.4,0.49301599]
[1717872115738,2.21186625,3690.9,3690.4,0.49301599]
[1717872116074,1.62635121,3690.9,3690.4,0.49301599]
[1717872116284,0.58551504,3690.8,3690.4,0.49301599]
[1717872118387,0.58547732,3690.8,3690.4,0.49301599]
[1717872120796,1.62632589,3690.9,3690.4,0.49301599]
[1717872121288,0.58546696,3690.8,3690.4,0.49301599]
[1717872124246,2.21179285,3690.8,3690.4,0.49301599]
[1717872124545,1.62632589,3690.8,3690.4,0.49301599]
[1717872127888,0.58546927,3690.7,3690.4,0.49301599]
[1717872128096,1.62632589,3690.8,3690.4,0.49301599]
[1717872128248,0.58546911,3690.7,3690.4,0.49301599]
[1717872128592,1.62632589,3690.8,3690.4,0.49301599]
[1717872131091,0.58546787,3690.7,3690.4,0.49301599]
[1717872131280,1.62632589,3690.8,3690.4,0.49301599]
[1717872131596,0.58547475,3690.7,3690.4,0.49301599]
[1717872131798,1.62632589,3690.8,3690.4,0.49301599]
[1717872132100,0.58547434,3690.7,3690.4,0.49301599]
[1717872132263,1.62632589,3690.8,3690.4,0.49301599]
[1717872132462,0.58547468,3690.7,3690.4,0.49301599]
[1717872132863,1.62631775,3690.8,3690.4,0.49301599]
[1717872133059,0.58547434,3690.7,3690.4,0.49301599]
[1717872133778,1.62631775,3690.8,3690.4,0.49301599]
[1717872135890,1.62631775,3690.9,3690.4,0.49301599]
[1717872136050,0.58545737,3690.8,3690.4,0.49301599]
[1717872136262,1.62631775,3690.9,3690.4,0.49301599]
[1717872136495,0.58545618,3690.8,3690.4,0.49301599]
[1717872136701,1.62631775,3690.9,3690.4,0.49301599]
[1717872136865,0.58545619,3690.8,3690.4,0.49301599]
[1717872137214,1.62631775,3690.9,3690.4,0.49301599]
[1717872137378,0.58545318,3690.8,3690.4,0.49301599]
[1717872137582,1.62631775,3690.9,3690.4,0.49301599]
[1717872141217,0.5854508,3690.8,3690.4,0.49301599]
[1717872141385,1.62631775,3690.9,3690.4,0.49301599]
[1717872141907,0.58545071,3690.8,3690.4,0.49301599]
[1717872142118,1.62631775,3690.8,3690.4,0.49301599]
[1717872144217,0.58547483,3690.7,3690.4,0.49301599]
[1717872144817,1.62631775,3690.8,3690.4,0.49301599]
[1717872145024,0.58547499,3690.7,3690.4,0.49301599]
[1717872145318,1.62631775,3690.8,3690.4,0.49301599]
[1717872145503,0.5854753,3690.7,3690.4,0.49301599]
[1717872145709,1.62631775,3690.8,3690.4,0.49301599]
[1717872145891,0.58547378,3690.7,3690.4,0.49301599]
[1717872146088,1.62631775,3690.8,3690.4,0.49301599]
[1717872146299,2.21179154,3690.7,3690.4,0.49301599]
[1717872146579,1.62631775,3690.7,3690.4,0.49301599]
[1717872157293,0.5854819,3690.6,3690.4,0.49301599]
[1717872157578,1.62631775,3690.7,3690.4,0.49301599]
[1717872157784,0.5854841,3690.6,3690.4,0.49301599]
[1717872157988,1.62631775,3690.7,3690.4,0.49301599]
[1717872158147,0.58548485,3690.6,3690.4,0.49301599]
[1717872158347,1.62631775,3690.7,3690.4,0.49301599]
[1717872158571,0.58548484,3690.6,3690.4,0.49301599]
[1717872158781,1.6263468,3690.7,3690.4,0.49301599]
[1717872158986,0.58548508,3690.6,3690.4,0.49301599]
[1717872159183,1.6263468,3690.7,3690.4,0.49301599]
[1717872159595,0.58548472,3690.6,3690.4,0.49301599]
[1717872159898,1.6263468,3690.7,3690.4,0.49301599]
[1717872160198,0.58548513,3690.6,3690.4,0.49301599]
[1717872160397,0.23541,3690.9,3690.4,0.49301599]
[1717872160706,1.62634788,3690.7,3690.4,0.49301599]
[1717872160858,0.58548512,3690.6,3690.4,0.49301599]
[1717872161058,1.62634788,3690.7,3690.4,0.49301599]
[1717872161258,2.39800878,3690.6,3690.4,0.49301599]
[1717872161556,2.39800878,3690.6,3690.2,2.7098]
[1717872161557,2.21186945,3690.5,3690.2,2.7098]
[1717872161762,0.58552157,3690.4,3690.3,0.49314043]
[1717872161983,0.58552157,3690.4,3690.1,2.3188]
[1717872162192,1.62634788,3690.5,3690.2,0.49319057]
[1717872162525,0.58553114,3690.4,3690.2,0.49319057]
[1717872162811,1.62634788,3690.5,3690.2,0.49319057]
[1717872165609,0.5855181,3690.5,3690.2,0.49319057]
[1717872166730,1.62634788,3690.6,3690.2,0.49319057]
[1717872167329,2.2118642,3690.7,3690.2,0.49319057]
[1717872167630,1.62634788,3690.7,3690.2,0.49319057]
[1717872168226,1.62634788,3690.7,3690.3,2.2823]
[1717872168430,1.62634788,3690.7,3690.4,0.49309029]
[1717872168640,1.62634788,3690.8,3690.4,0.49309029]
[1717872168932,0.58548846,3690.7,3690.4,0.49309029]
[1717872169386,1.62634788,3690.7,3690.4,0.49309029]
[1717872170995,0.58548894,3690.6,3690.4,0.49309029]
[1717872171404,1.62634788,3690.7,3690.4,0.49309029]
[1717872171620,0.58550387,3690.6,3690.4,0.49309029]
[1717872172332,1.62634788,3690.7,3690.4,0.49309029]
[1717872172626,0.58550233,3690.6,3690.4,0.49309029]
[1717872172833,1.62634788,3690.7,3690.4,0.49309029]
[1717872173013,0.58550084,3690.6,3690.4,0.49309029]
[1717872173338,1.62634788,3690.7,3690.4,0.49309029]
[1717872173536,0.58550181,3690.6,3690.4,0.49309029]
[1717872174112,1.62634788,3690.7,3690.4,0.49309029]
[1717872174307,0.58550226,3690.6,3690.4,0.49309029]
[1717872174501,1.62634788,3690.7,3690.4,0.49309029]
[1717872174708,0.58550195,3690.6,3690.4,0.49309029]
[1717872174914,1.62634788,3690.7,3690.4,0.49309029]
[1717872175117,0.58550312,3690.6,3690.4,0.49309029]
[1717872176638,1.62634788,3690.7,3690.4,0.49309029]
[1717872176836,0.58549727,3690.6,3690.4,0.49309029]
[1717872177035,1.62634788,3690.6,3690.4,0.49309029]
[1717872178133,1.62634788,3690.7,3690.4,0.49309029]
[1717872178329,0.58549903,3690.6,3690.4,0.49309029]
[1717872178497,1.62634788,3690.7,3690.4,0.49309029]
[1717872178851,0.58549439,3690.6,3690.4,0.49309029]
[1717872179036,1.62634788,3690.7,3690.4,0.49309029]
[1717872179235,0.5854945,3690.6,3690.4,0.49309029]
[1717872179611,1.62634788,3690.7,3690.4,0.49309029]
[1717872179811,0.5854945,3690.6,3690.4,0.49309029]
[1717872180009,1.62634788,3690.7,3690.4,0.49309029]
[1717872180418,0.5854941,3690.6,3690.4,0.49309029]
[1717872180620,1.62634788,3690.7,3690.4,0.49309029]
[1717872180820,0.58549362,3690.6,3690.4,0.49309029]
[1717872181015,1.62634788,3690.7,3690.4,0.49309029]
[1717872181215,0.58549432,3690.6,3690.4,0.49309029]
[1717872181421,1.62634788,3690.7,3690.4,0.49309029]
[1717872181622,0.58549408,3690.6,3690.4,0.49309029]
[1717872182032,1.62634788,3690.7,3690.4,0.49309029]
[1717872182247,0.58549458,3690.6,3690.4,0.49309029]
[1717872182417,1.62634788,3690.7,3690.4,0.49309029]
[1717872182614,0.58549401,3690.6,3690.4,0.49309029]
[1717872182834,1.62634788,3690.7,3690.4,0.49309029]
[1717872183033,0.58549294,3690.6,3690.4,0.49309029]
[1717872183219,1.62634788,3690.7,3690.4,0.49309029]
[1717872183405,0.58549209,3690.6,3690.4,0.49309029]
[1717872183605,1.62634788,3690.7,3690.4,0.49309029]
[1717872183805,0.58549237,3690.6,3690.4,0.49309029]
[1717872184048,1.62634788,3690.7,3690.4,0.49309029]
[1717872184231,0.58549127,3690.6,3690.4,0.49309029]
[1717872184549,1.62634788,3690.7,3690.4,0.49309029]
[1717872184847,0.58549071,3690.6,3690.4,0.49309029]
[1717872185043,1.62634788,3690.7,3690.4,0.49309029]
[1717872185292,0.58549141,3690.6,3690.4,0.49309029]
[1717872185488,3.298313,3691.0,3690.4,0.49309029]
[1717872185650,1.62636761,3690.7,3690.4,0.49309029]
[1717872185856,0.58549247,3690.6,3690.4,0.49309029]
[1717872186048,1.62636761,3690.7,3690.4,0.49309029]
[1717872186357,0.58549257,3690.6,3690.4,0.49309029]
[1717872186561,1.62636761,3690.7,3690.4,0.49309029]
[1717872186762,0.58549117,3690.6,3690.4,0.49309029]
[1717872186961,1.62636761,3690.7,3690.4,0.49309029]
[1717872187253,0.58549163,3690.6,3690.4,0.49309029]
[1717872187595,1.62636761,3690.7,3690.4,0.49309029]
[1717872187762,0.58549167,3690.6,3690.4,0.49309029]
[1717872187963,1.62636761,3690.7,3690.4,0.49309029]
[1717872188187,0.58549265,3690.6,3690.4,0.49309029]
[1717872188387,1.62636761,3690.7,3690.4,0.49309029]
[1717872188553,0.58549331,3690.6,3690.4,0.49309029]
[1717872188751,1.62636761,3690.7,3690.4,0.49309029]
[1717872188981,0.58549244,3690.6,3690.4,0.49309029]
[1717872189348,1.62637015,3690.7,3690.4,0.49309029]
[1717872189589,0.58549315,3690.6,3690.4,0.49309029]
[1717872189761,1.62637015,3690.7,3690.4,0.49309029]
[1717872190090,0.58549266,3690.6,3690.4,0.49309029]
[1717872190605,0.58550922,3690.5,3690.4,0.49309029]
[1717872190888,2.21187937,3690.5,3690.4,0.49309029]
[1717872191094,0.58550922,3690.5,3690.4,0.49309029]
[1717872192493,2.21187937,3690.5,3690.4,0.49309029]
[1717872192706,0.58550922,3690.5,3690.4,0.49309029]
[1717872193668,2.21187937,3690.5,3690.4,0.49309029]
[1717872194217,2.21187937,3690.5,3690.1,2.3798]
[1717872194376,1.62637015,3690.5,3690.4,0.49310779]
[1717872194715,2.21189191,3690.5,3690.4,0.49310779]
[1717872194867,2.21189191,3690.5,3690.1,2.3798]
[1717872195181,1.62637015,3690.5,3690.4,0.49310779]
[1717872195381,2.21188389,3690.5,3690.1,2.3798]
[1717872195719,1.62637015,3690.5,3690.1,2.3798]
[1717872196006,1.62637015,3690.5,3690.2,0.49320807]
[1717872197007,1.62637015,3690.6,3690.2,0.49320807]
[1717872197170,0.58550378,3690.5,3690.2,0.49320807]
[1717872197371,1.62637015,3690.6,3690.2,0.49320807]
[1717872197572,0.58550379,3690.5,3690.2,0.49320807]
[1717872197773,1.62637015,3690.6,3690.2,0.49320807]
[1717872197995,0.58550137,3690.5,3690.2,0.49320807]
[1717872198203,1.62637015,3690.6,3690.2,0.49320807]
[1717872198469,0.58550182,3690.5,3690.2,0.49320807]
[1717872198669,1.62637015,3690.6,3690.2,0.49320807]
[1717872198917,0.58550104,3690.5,3690.2,0.49320807]
[1717872199076,1.62637015,3690.5,3690.2,0.49320807]
[1717872202025,1.62637015,3690.6,3690.2,0.49320807]
[1717872202226,0.5855075,3690.5,3690.2,0.49320807]
[1717872202426,1.62637015,3690.6,3690.2,0.49320807]
[1717872202639,0.58550748,3690.5,3690.2,0.49320807]
[1717872202844,1.62637015,3690.5,3690.2,0.49320807]
[1717872203024,1.62637015,3690.6,3690.2,0.49320807]
[1717872203739,1.62637015,3690.6,3690.3,2.3798]
[1717872203942,1.62637015,3690.6,3690.3,2.87297103]
[1717872205033,1.62637015,3690.7,3690.3,2.87297103]
[1717872205230,0.58548698,3690.6,3690.3,2.87297103]
[1717872205425,1.62637015,3690.7,3690.3,2.87297103]
[1717872205642,0.58548538,3690.6,3690.3,2.87297103]
[1717872205844,1.62634787,3690.7,3690.3,2.87297103]
[1717872206047,0.58548488,3690.6,3690.3,2.87297103]
[1717872206216,1.62634787,3690.7,3690.3,2.87297103]
[1717872206417,0.58548937,3690.6,3690.3,2.87297103]
[1717872206619,1.62634787,3690.7,3690.3,2.87297103]
[1717872206858,0.58548958,3690.6,3690.3,2.87297103]
[1717872207058,1.62634787,3690.6,3690.3,2.87297103]
[1717872207263,1.62634787,3690.6,3690.5,3.1197]
[1717872207464,4.073,3694.9,3690.8,2.70943]
[1717872207465,1.62634787,3691.0,3690.8,2.70943]
[1717872207631,1.62634787,3691.0,3690.5,5.66585466]
[1717872207632,1.62634787,3691.4,3691.0,2.3967]
[1717872207832,1.62634787,3691.5,3691.1,0.723]
[1717872208159,1.62634787,3691.7,3691.1,1.21580499]
[1717872208363,0.16263479,3691.7,3691.1,1.21580499]
[1717872208666,2.21169839,3692.1,3691.5,0.723]
[1717872208825,1.62634787,3692.2,3691.5,0.723]
[1717872209017,1.30835052,3692.6,3691.5,0.723]
[1717872209018,1.62634787,3692.3,3691.6,0.49231406]
[1717872209222,0.58535052,3692.4,3691.6,0.49231406]
[1717872209440,0.29346984,3692.3,3691.6,0.49231406]
[1717872210383,5.1255,3692.7,3691.7,4.51255466]
[1717872210384,4.33444787,3692.7,3691.7,4.51255466]
[1717872210582,4.33444787,3692.7,3691.7,5.00479677]
[1717872210984,5.05744787,3692.7,3691.7,5.00479677]
[1717872211502,3.4311,3692.7,3691.7,5.00479677]
[1717872213965,3.4311,3692.7,3691.7,4.28179677]
[1717872214167,0.56427984,3692.6,3691.7,4.28179677]
[1717872216460,4.04309367,3693.0,3691.9,2.3967]
[1717872216666,0.723,3693.0,3691.9,2.3967]
[1717872216880,0.723,3693.0,3692.0,0.49154119]
[1717872220376,0.723,3693.0,3692.0,1.21454119]
[1717872221590,0.723,3693.0,3692.0,0.49154119]
[1717872221804,0.723,3692.8,3692.0,0.49154119]
[1717872222391,0.884812,3693.0,3692.0,0.49154119]
[1717872222595,0.723,3692.9,3692.0,0.49154119]
[1717872225243,2.70772,3693.2,3692.0,0.49154119]
[1717872225403,0.723,3693.0,3692.1,2.3967]
[1717872225907,0.723,3693.0,3692.2,0.49144102]
[1717872226439,2.70772,3693.2,3692.2,0.49144102]
[1717872226743,0.723,3693.0,3692.2,0.49144102]
[1717872235258,2.34854391,3693.0,3692.2,0.49144102]
[1717872235459,3.4544293,3693.0,3692.2,0.49144102]
[1717872236257,1.62554391,3692.9,3692.2,0.49144102]
[1717872237319,1.62554391,3692.7,3692.2,0.49144102]
[1717872237547,1.62554391,3692.7,3692.1,2.3967]
[1717872237741,1.62554391,3692.7,3692.3,0.49131667]
[1717872237949,1.62554391,3692.7,3692.1,2.3967]
[1717872238143,1.62554391,3692.7,3692.4,0.49126659]
[1717872238355,1.62554391,3692.7,3692.1,2.3967]
[1717872238623,1.62554391,3692.7,3692.5,0.49121651]
[1717872238624,2.2107339,3692.7,3692.5,0.49121651]
[1717872238822,1.62554391,3692.7,3692.1,2.3967]
[1717872239336,1.62554391,3692.6,3692.1,2.3967]
[1717872240765,1.6255346,3692.6,3692.1,2.3967]
[1717872241260,1.6255346,3692.6,3692.2,0.49136675]
[1717872241463,2.21072705,3692.6,3692.2,0.49136675]
[1717872241704,1.6255346,3692.6,3692.1,2.3967]
[1717872241968,2.3485346,3692.6,3692.2,0.49136675]
[1717872242175,2.21072705,3692.5,3692.2,0.49136675]
[1717872242379,2.21072705,3692.5,3692.1,2.3967]
[1717872242543,1.6255346,3692.4,3692.3,0.49131667]
[1717872242874,1.6255346,3692.4,3692.1,2.3967]
[1717872243070,2.21072705,3692.4,3692.3,0.49131667]
[1717872243274,1.6255346,3692.4,3692.2,0.49136675]
[1717872243471,2.21072705,3692.4,3692.3,0.49131667]
[1717872243773,1.6255346,3692.4,3692.1,2.3967]
[1717872243930,2.21072705,3692.4,3692.3,0.49131667]
[1717872244130,1.6255346,3692.4,3692.1,2.3967]
[1717872244372,2.21072705,3692.4,3692.2,0.49155462]
[1717872244578,1.6255346,3692.4,3692.2,0.49155462]
[1717872244874,2.21072705,3692.4,3692.1,2.3967]
[1717872245084,1.6255346,3692.4,3692.3,0.49150453]
[1717872245429,2.21072705,3692.4,3692.3,0.49150453]
[1717872245585,0.58519245,3692.4,3691.8,2.2764]
[1717872245783,2.21091558,3692.3,3691.8,2.2764]
[1717872245942,1.62572313,3692.3,3691.8,2.2764]
[1717872246572,0.58519245,3692.3,3691.8,2.2764]
[1717872247277,1.62572313,3692.4,3691.8,2.2764]
[1717872247477,2.21091558,3692.4,3691.8,2.2764]
[1717872247685,1.62572313,3692.4,3691.8,2.2764]
[1717872247842,2.21091558,3692.4,3691.8,2.2764]
[1717872248037,1.62572313,3692.4,3691.8,2.2764]
[1717872248378,2.21091558,3692.4,3691.8,2.2764]
[1717872248591,1.62572313,3692.4,3691.8,2.2764]
[1717872248884,2.21091558,3692.4,3691.8,2.2764]
[1717872249189,2.21091558,3692.3,3691.8,2.2764]
[1717872249365,1.62572313,3692.3,3691.8,2.2764]
[1717872249765,2.21091558,3692.3,3691.8,2.2764]
[1717872249979,1.62577351,3692.3,3691.8,2.2764]
[1717872250150,2.21105197,3692.4,3691.8,2.2764]
[1717872250347,1.62577351,3692.4,3691.8,2.2764]
[1717872250552,2.21105197,3692.4,3691.8,2.2764]
[1717872250794,1.62577351,3692.4,3691.8,2.2764]
[1717872251095,1.62577351,3692.3,3691.8,2.2764]
[1717872251697,1.62573322,3692.3,3691.8,2.2764]
[1717872252079,1.62573322,3692.4,3691.8,2.2764]
[1717872252280,2.21099718,3692.4,3691.8,2.2764]
[1717872252470,1.62573322,3692.4,3691.8,2.2764]
[1717872252667,2.21099718,3692.4,3691.8,2.2764]
[1717872252869,0.723,3692.2,3691.8,2.2764]
[1717872253072,2.93399718,3692.2,3691.6,2.4024]
[1717872253258,1.62573322,3692.1,3691.6,2.4024]
[1717872254091,2.21099718,3692.1,3691.6,2.4024]
[1717872254362,1.62573322,3692.1,3691.6,2.4024]
[1717872254771,2.21099718,3692.0,3691.6,2.4024]
[1717872255097,1.62573322,3692.0,3691.6,2.4024]
[1717872255299,2.21099718,3692.0,3691.6,2.4024]
[1717872255469,1.62573322,3692.0,3691.6,2.4024]
[1717872255658,2.21099718,3692.0,3691.6,2.4024]
[1717872255860,1.62573322,3692.0,3691.6,2.4024]
[1717872256183,2.21099718,3692.0,3691.7,0.4916871]
[1717872256709,1.62573322,3692.0,3691.7,0.4916871]
[1717872256893,2.21099718,3692.0,3691.7,0.4916871]
[1717872257077,1.62573322,3692.0,3691.7,0.4916871]
[1717872259804,2.21099718,3692.1,3691.7,0.4916871]
[1717872260181,1.62573322,3692.0,3691.7,0.4916871]
[1717872263087,1.62573322,3692.1,3691.7,0.4916871]
[1717872263293,1.62573322,3692.0,3691.7,0.4916871]
[1717872263688,1.62573322,3692.1,3691.7,0.4916871]
[1717872268124,2.21099718,3692.1,3691.7,0.4916871]
[1717872268279,1.62573322,3692.1,3691.7,0.4916871]
[1717872268481,1.62573322,3692.0,3691.7,0.4916871]
[1717872269505,2.21099718,3692.0,3691.7,0.4916871]
[1717872269714,1.62573322,3692.0,3691.7,0.4916871]
[1717872270313,2.21099718,3692.0,3691.7,0.4916871]
[1717872270511,1.62573322,3692.0,3691.7,0.4916871]
[1717872270906,2.21099718,3692.0,3691.7,0.4916871]
[1717872271073,1.62573322,3692.0,3691.7,0.4916871]
[1717872271574,2.21099718,3692.0,3691.7,0.4916871]
[1717872271785,1.62573322,3692.0,3691.7,0.4916871]
[1717872272410,2.21099718,3692.0,3691.7,0.4916871]
[1717872272613,1.62573322,3692.0,3691.7,0.4916871]
[1717872273092,2.21099718,3692.0,3691.7,0.4916871]
[1717872273298,1.62573322,3692.0,3691.7,0.4916871]
[1717872273525,1.62573322,3691.9,3691.7,0.4916871]
[1717872274625,2.21099718,3691.9,3691.7,0.4916871]
[1717872274827,1.62573322,3691.9,3691.7,0.4916871]
[1717872274995,2.70838,3692.3,3691.7,0.4916871]
[1717872274996,2.21099718,3691.8,3691.7,0.4916871]
[1717872275399,0.58526396,3691.8,3691.7,0.4916871]
[1717872276016,2.21113989,3691.8,3691.7,0.4916871]
[1717872282338,0.58526396,3691.8,3691.7,0.4916871]
[1717872284246,2.70838,3692.3,3691.7,0.49169147]
[1717872284450,0.60594874,3692.2,3691.7,0.49169147]
[1717872284603,0.5853088,3692.1,3691.7,0.49169147]
[1717872284807,0.5853088,3692.0,3691.7,0.49169147]
[1717872285115,0.5853088,3691.9,3691.7,0.49169147]
[1717872285315,0.5853088,3691.8,3691.7,0.49169147]
[1717872285721,0.585331,3691.8,3691.7,0.49169147]
[1717872292548,2.21116734,3691.8,3691.7,0.49169147]
[1717872301260,2.21113737,3691.8,3691.7,0.49169147]
[1717872303676,0.58530107,3691.8,3691.7,0.49169147]
[1717872304734,0.5852863,3691.8,3691.7,0.49169147]
[1717872304976,2.2110816,3691.8,3691.7,0.49169147]
[1717872305125,0.5852863,3691.8,3691.7,0.49169147]
[1717872305638,2.2110816,3691.8,3691.7,0.49169147]
[1717872306025,0.5852863,3691.8,3691.7,0.49169147]
[1717872306567,0.87869446,3691.8,3691.3,2.3751]
[1717872306729,0.723,3691.9,3691.7,0.49164341]
[1717872306926,1.30833165,3691.8,3691.2,7.43]
[1717872307165,1.62614473,3691.3,3691.2,7.43]
[1717872307348,1.62614473,3691.3,3690.9,2.70934]
[1717872307349,0.58533165,3691.3,3690.9,2.70934]
[1717872307673,2.21148902,3691.2,3690.9,2.70934]
[1717872307822,1.62615737,3691.2,3690.8,2.3751]
[1717872308027,1.62615737,3691.2,3690.8,3.76795466]
[1717872308241,1.62615737,3691.3,3690.8,3.76795466]
[1717872308529,0.58542496,3691.2,3690.8,3.76795466]
[1717872309136,1.62615737,3691.4,3690.8,3.76795466]
[1717872309352,0.58541405,3691.3,3690.8,3.76795466]
[1717872309776,0.58541405,3691.4,3690.8,3.76795466]
[1717872310069,2.21157142,3691.8,3691.1,2.3751]
[1717872310268,2.21157142,3691.9,3691.2,1.39285466]
[1717872310565,2.21157142,3691.9,3691.3,2.3751]
[1717872310765,2.21157142,3691.8,3691.3,3.76795466]
[1717872310964,1.62615737,3691.8,3691.3,3.76795466]
[1717872311174,2.21157142,3691.8,3691.3,3.76795466]
[1717872311378,1.62615737,3691.8,3691.3,3.76795466]
[1717872311674,2.21157142,3691.8,3691.3,3.76795466]
[1717872311841,1.62615737,3691.8,3691.3,3.76795466]
[1717872312163,0.58531747,3691.7,3691.3,3.76795466]
[1717872312573,2.21147484,3691.7,3691.3,3.76795466]
[1717872312877,1.62615737,3691.7,3691.3,3.76795466]
[1717872313244,2.21147484,3691.7,3691.3,3.76795466]
[1717872313574,1.62615737,3691.7,3691.3,3.76795466]
[1717872314077,2.21147484,3691.7,3691.3,3.76795466]
[1717872314247,1.62615737,3691.7,3691.3,3.76795466]
[1717872314754,2.21150074,3691.7,3691.3,3.76795466]
[1717872314960,1.62615737,3691.7,3691.3,3.76795466]
[1717872315448,2.21150074,3691.7,3691.3,3.76795466]
[1717872315768,1.62615737,3691.7,3691.3,3.76795466]
[1717872316074,1.62615737,3691.7,3691.4,0.49179372]